[Event "V Magistral Marcel Duchamp 2019"]
[Site "Montevideo"]
[Date "2019.02.17"]
[Round "1.5"]
[White "Lujan, Carolina"]
[Black "Gemy, Jose Daniel"]
[Result "0-1"]
[ECO "C50"]
[WhiteElo "2357"]
[BlackElo "2391"]
[Annotator "RC"]
[PlyCount "76"]
[EventDate "2019.02.17"]
[EventType "tourn"]
[EventCountry "URU"]
[SourceTitle "playchess.com"]
[Source "ChessBase"]
[SourceQuality "1"]
[TimeControl "5400+30"]

1. e4 {[%emt 0:00:42]} e5 {[%emt 0:11:42]} 2. Nf3 {[%emt 0:00:07]} Nc6 {[%emt 0:00:05]} 3. Bc4 {[%emt 0:00:05]} Bc5 {[%emt 0:00:06]} 4. O-O {[%emt 0:00:30]} Nf6 {[%emt 0:00:05]} 5. d3 {[%emt 0:00:03]} O-O {[%emt 0:01:02]} 6. Bb3 {[%emt 0:00:11]} d6 {[%emt 0:01:18]} 7. c3 {[%emt 0:00:12]} a6 {[%emt 0:01:22]} 8. h3 {[%emt 0:06:51]} h6 {[%emt 0:00:37]} 9. Re1 {[%emt 0:00:17]} Be6 {[%emt 0:00:17]} 10. Bc2 {[%emt 0:04:17]} d5 {[%emt 0:02:30]} 11. exd5 {[%emt 0:03:44]} Qxd5 {[%emt 0:00:14]} 12. b4 {[%emt 0:14:18]} Ba7 {[%emt 0:01:58]} 13. Nbd2 {[%emt 0:01:31]} Bf5 {[%emt 0:27:45]} 14. Qe2 {[%emt 0:26:34]} Bh7 {[%emt 0:06:26]} 15. Ne4 {[%emt 0:05:15]} Qe6 {[%emt 0:06:45]} 16. Nc5 {[%emt 0:07:25]} Bxc5 {[%emt 0:08:43]} 17. bxc5 {[%emt 0:00:04]} Qd5 {[%emt 0:00:25]} 18. Qe3 {[%emt 0:08:05]} Rad8 {[%emt 0:05:47]} 19. Rd1 {[%emt 0:00:59]} Rfe8 {[%emt 0:04:19]} 20. Ba3 {[%emt 0:04:28]} Qd7 {[%emt 0:03:21]} 21. Ba4 {[%emt 0:00:44]} Nd5 {[%emt 0:04:06]} 22. Qd2 {[%emt 0:06:43]} Nf4 {[%emt 0:01:20]} 23. d4 {[%emt 0:01:13]} Nxh3+ {[%emt 0:03:35]} 24. Kh2 {[%emt 0:05:32]} Qg4 {[%emt 0:02:52]} 25. gxh3 {[%emt 0:00:28]} Qxf3 {[%emt 0:00:06]} 26. Rg1 {[%emt 0:01:09]} exd4 {[%emt 0:00:34]} 27. Bxc6 {[%emt 0:01:24]} bxc6 {[%emt 0:00:14]} 28. Rg3 {[%emt 0:00:26]} dxc3 {[%emt 0:00:29]} 29. Qxc3 {[%emt 0:00:18]} Qxf2+ {[%emt 0:00:42]} 30. Rg2 {[%emt 0:00:01]} Qf4+ {[%emt 0:00:21]} 31. Kg1 {[%emt 0:00:13]} Qe3+ {[%emt 0:01:09]} 32. Qxe3 {[%emt 0:00:01]} Rxe3 {[%emt 0:00:04]} 33. Bb2 {[%emt 0:00:07]} Bg6 {[%emt 0:00:46]} 34. h4 {[%emt 0:00:23]} Rh3 {[%emt 0:00:38]} 35. Rg4 {[%emt 0:02:03]} h5 {[%emt 0:00:11]} 36. Rb4 {[%emt 0:00:23]} Rd2 {[%emt 0:00:34]} 37. Re1 {[%emt 0:00:25]} Rhh2 {[%emt 0:01:29]} 38. Re8+ {[%emt 0:00:39]} Kh7 {[%emt 0:00:02]} 0-1

[Event "V Magistral Marcel Duchamp 2019"]
[Site "Montevideo"]
[Date "2019.02.20"]
[Round "5.3"]
[White "Lujan, Carolina"]
[Black "Lima, Darcy"]
[Result "0-1"]
[ECO "B11"]
[WhiteElo "2357"]
[BlackElo "2535"]
[Annotator "RC"]
[PlyCount "144"]
[EventDate "2019.02.17"]
[EventType "tourn"]
[EventCountry "URU"]
[SourceTitle "playchess.com"]
[Source "ChessBase"]
[SourceQuality "1"]
[TimeControl "5400+30"]

1. e4 {[%emt 0:00:35]} c6 {[%emt 0:00:02]} 2. Nc3 {[%emt 0:00:08]} d5 {[%emt 0:00:08]} 3. Nf3 {[%emt 0:00:06]} Bg4 {[%emt 0:00:49]} 4. h3 {[%emt 0:00:39]} Bh5 {[%emt 0:00:26]} 5. exd5 cxd5 {[%emt 0:00:08]} 6. Bb5+ {[%emt 0:00:36]} Nc6 {[%emt 0:00:09]} 7. g4 {[%emt 0:01:13]} Bg6 {[%emt 0:00:08]} 8. h4 {[%emt 0:04:07]} f6 {[%emt 0:17:03]} 9. d4 {[%emt 0:08:07]} e6 {[%emt 0:01:51]} 10. Qe2 {[%emt 0:02:12]} Qd7 {[%emt 0:01:15]} 11. a3 {[%emt 0:02:07]} a6 {[%emt 0:07:03]} 12. h5 {[%emt 0:03:28]} Be4 {[%emt 0:05:58]} 13. Bxc6 {[%emt 0:03:32]} Qxc6 {[%emt 0:00:05]} 14. Rh3 {[%emt 0:00:20]} Bxf3 {[%emt 0:06:01]} 15. Rxf3 {[%emt 0:00:59]} Kd7 {[%emt 0:00:07]} 16. Bf4 {[%emt 0:04:01]} Ne7 {[%emt 0:16:23]} 17. O-O-O {[%emt 0:03:23]} Re8 {[%emt 0:03:12]} 18. Na2 {[%emt 0:07:51]} Qc4 {[%emt 0:01:20]} 19. Qd2 {[%emt 0:09:11]} Nc6 {[%emt 0:06:32]} 20. Kb1 {[%emt 0:00:46]} e5 {[%emt 0:14:12]} 21. dxe5 {[%emt 0:10:43]} fxe5 {[%emt 0:00:03]} 22. Be3 {[%emt 0:01:16]} d4 {[%emt 0:00:11]} 23. c3 {[%emt 0:00:59]} Bc5 {[%emt 0:07:06]} 24. cxd4 {[%emt 0:05:03]} exd4 {[%emt 0:00:05]} 25. Rc1 {[%emt 0:01:08]} Qd5 {[%emt 0:00:38]} 26. Rf5 {[%emt 0:01:58]} Qe4+ {[%emt 0:00:45]} 27. Ka1 {[%emt 0:00:12]} Bd6 {[%emt 0:01:24]} 28. Bf4 {[%emt 0:02:38]} Rhf8 {[%emt 0:01:53]} 29. Bxd6 {[%emt 0:03:34]} Rxf5 {[%emt 0:00:10]} 30. gxf5 {[%emt 0:00:09]} Kxd6 {[%emt 0:00:04]} 31. Nb4 {[%emt 0:02:38]} Rc8 {[%emt 0:02:42]} 32. Re1 {[%emt 0:03:02]} Qh4 {[%emt 0:01:48]} 33. f4 {[%emt 0:03:59]} Rd8 {[%emt 0:01:17]} 34. Re6+ {[%emt 0:04:50]} Kc7 {[%emt 0:00:04]} 35. Nxc6 {[%emt 0:00:07]} bxc6 {[%emt 0:00:36]} 36. Qa5+ {[%emt 0:03:02]} Kd7 {[%emt 0:00:47]} 37. Qb4 {[%emt 0:00:31]} Kc7 {[%emt 0:01:57]} 38. Re7+ {[%emt 0:00:48]} Rd7 {[%emt 0:00:04]} 39. Qa5+ {[%emt 0:02:15]} Kc8 {[%emt 0:00:04]} 40. Qxa6+ {[%emt 0:00:10]} Kd8 {[%emt 0:00:03]} 41. Rxd7+ {[%emt 0:01:19]} Kxd7 {[%emt 0:00:06]} 42. Qa7+ {[%emt 0:00:04]} Ke8 {[%emt 0:00:25]} 43. Qxd4 {[%emt 0:00:18]} Qxh5 {[%emt 0:00:05]} 44. Qe5+ {[%emt 0:00:45]} Kf8 {[%emt 0:01:11]} 45. Qd6+ {[%emt 0:00:48]} Kf7 {[%emt 0:00:05]} 46. Qd7+ {[%emt 0:01:27]} Kf8 {[%emt 0:00:02]} 47. a4 {[%emt 0:00:48]} Qe8 {[%emt 0:02:15]} 48. Qd6+ {[%emt 0:00:48]} Qe7 {[%emt 0:00:16]} 49. Qxc6 {[%emt 0:01:00]} h5 {[%emt 0:00:06]} 50. a5 {[%emt 0:00:33]} Qe1+ {[%emt 0:00:04]} 51. Ka2 {[%emt 0:00:05]} Qxa5+ {[%emt 0:00:04]} 52. Kb3 {[%emt 0:00:06]} Qxf5 {[%emt 0:00:06]} 53. Qd6+ {[%emt 0:00:29]} Kf7 {[%emt 0:00:24]} 54. Qc7+ {[%emt 0:01:06]} Kg6 {[%emt 0:00:09]} 55. Qd6+ {[%emt 0:00:25]} Kh7 {[%emt 0:00:09]} 56. Ka4 {[%emt 0:01:26]} h4 {[%emt 0:00:46]} 57. b4 {[%emt 0:00:08]} h3 {[%emt 0:00:32]} 58. Qd2 {[%emt 0:00:13]} Qe4 {[%emt 0:00:36]} 59. Ka5 {[%emt 0:01:01]} Qa8+ {[%emt 0:00:23]} 60. Kb6 {[%emt 0:00:17]} Qg2 {[%emt 0:00:08]} 61. Qd1 {[%emt 0:00:25]} Qg6+ {[%emt 0:00:16]} 62. Kc7 {[%emt 0:00:16]} h2 {[%emt 0:00:43]} 63. b5 {[%emt 0:00:17]} Qf7+ {[%emt 0:00:50]} 64. Kc6 {[%emt 0:01:23]} Qxf4 {[%emt 0:01:12]} 65. Qd3+ {[%emt 0:00:38]} Kh6 {[%emt 0:01:18]} 66. Qh3+ {[%emt 0:00:10]} Kg5 {[%emt 0:00:06]} 67. Qg2+ {[%emt 0:00:18]} Kh4 {[%emt 0:00:18]} 68. b6 {[%emt 0:00:28]} Qc1+ {[%emt 0:00:06]} 69. Kd7 {[%emt 0:00:10]} h1=Q {[%emt 0:00:19]} 70. Qf2+ {[%emt 0:00:09]} Kg5 {[%emt 0:02:51]} 71. Qg3+ {[%emt 0:00:05]} Kf5 {[%emt 0:00:21]} 72. Qd3+ {[%emt 0:00:17]} Qe4 {[%emt 0:00:08]} 0-1

[Event "V Magistral Marcel Duchamp 2019"]
[Site "Montevideo"]
[Date "2019.02.20"]
[Round "5.4"]
[White "Gemy, Jose Daniel"]
[Black "Hungaski, Robert"]
[Result "0-1"]
[ECO "D25"]
[WhiteElo "2391"]
[BlackElo "2520"]
[Annotator "RC"]
[PlyCount "126"]
[EventDate "2019.02.17"]
[EventType "tourn"]
[EventCountry "URU"]
[SourceTitle "playchess.com"]
[Source "ChessBase"]
[SourceQuality "1"]
[TimeControl "5400+30"]

1. Nf3 {[%emt 0:10:03]} d5 {[%emt 0:00:00]} 2. d4 {[%emt 0:00:10]} Nf6 {[%emt 0:00:00]} 3. c4 {[%emt 0:00:05]} dxc4 {[%emt 0:00:00]} 4. e3 {[%emt 0:00:06]} Bg4 {[%emt 0:00:07]} 5. Bxc4 {[%emt 0:00:10]} e6 {[%emt 0:00:07]} 6. Nbd2 {[%emt 0:00:56]} Nbd7 {[%emt 0:00:34]} 7. O-O {[%emt 0:00:23]} Bd6 {[%emt 0:00:49]} 8. h3 {[%emt 0:00:42]} Bh5 {[%emt 0:00:16]} 9. b3 {[%emt 0:00:05]} O-O {[%emt 0:03:32]} 10. Bb2 {[%emt 0:00:13]} Qe7 {[%emt 0:00:52]} 11. a3 {[%emt 0:01:12]} e5 {[%emt 0:01:35]} 12. dxe5 {[%emt 0:02:33]} Nxe5 {[%emt 0:00:21]} 13. Be2 {[%emt 0:00:07]} Rfd8 {[%emt 0:10:28]} 14. Nxe5 {[%emt 0:06:43]} Bxe2 15. Nc6 {[%emt 0:06:18]} Bxd1 {[%emt 0:04:17]} 16. Nxe7+ {[%emt 0:00:11]} Bxe7 {[%emt 0:02:12]} 17. Rfxd1 {[%emt 0:00:16]} Rd3 {[%emt 0:02:55]} 18. Kf1 {[%emt 0:00:16]} Rad8 {[%emt 0:10:15]} 19. Ke2 {[%emt 0:00:41]} R3d7 {[%emt 0:01:02]} 20. b4 {[%emt 0:03:13]} Nd5 {[%emt 0:15:15]} 21. Nc4 {[%emt 0:05:37]} c6 {[%emt 0:03:12]} 22. g4 {[%emt 0:11:57]} f6 {[%emt 0:03:07]} 23. f4 {[%emt 0:02:50]} Kf7 {[%emt 0:00:37]} 24. Kf3 {[%emt 0:01:09]} Nc7 {[%emt 0:09:17]} 25. Rxd7 {[%emt 0:12:07]} Rxd7 {[%emt 0:00:05]} 26. Na5 {[%emt 0:00:18]} Ne6 {[%emt 0:03:52]} 27. Ke2 {[%emt 0:03:55]} Bd8 {[%emt 0:01:11]} 28. Nb3 {[%emt 0:00:26]} Bb6 {[%emt 0:00:38]} 29. f5 {[%emt 0:09:30]} Ng5 {[%emt 0:05:20]} 30. h4 {[%emt 0:02:12]} Ne4 {[%emt 0:00:07]} 31. Bd4 {[%emt 0:01:02]} h5 {[%emt 0:04:53]} 32. Kf3 {[%emt 0:04:13]} Nd6 {[%emt 0:00:53]} 33. Bxb6 {[%emt 0:08:21]} hxg4+ {[%emt 0:00:04]} 34. Kxg4 {[%emt 0:00:13]} axb6 {[%emt 0:00:04]} 35. Rd1 {[%emt 0:00:09]} Ke7 {[%emt 0:01:22]} 36. a4 {[%emt 0:02:05]} Rd8 {[%emt 0:03:08]} 37. Rd4 {[%emt 0:02:14]} Rc8 {[%emt 0:02:07]} 38. Rd1 {[%emt 0:03:24]} Nc4 {[%emt 0:05:32]} 39. Kf3 {[%emt 0:00:54]} Ra8 {[%emt 0:03:14]} 40. Ra1 {[%emt 0:00:49]} Ne5+ {[%emt 0:03:39]} 41. Ke4 {[%emt 0:00:22]} Rh8 {[%emt 0:00:41]} 42. Rh1 {[%emt 0:00:01]} Kd6 {[%emt 0:01:10]} 43. Rd1+ {[%emt 0:01:37]} Kc7 {[%emt 0:00:05]} 44. Rh1 {[%emt 0:00:01]} Rh5 {[%emt 0:01:33]} 45. Nd4 {[%emt 0:00:46]} Kd6 {[%emt 0:00:09]} 46. Ne6 {[%emt 0:01:28]} g6 {[%emt 0:00:27]} 47. Nd4 {[%emt 0:00:56]} g5 {[%emt 0:00:50]} 48. Nf3 {[%emt 0:00:23]} Nxf3 {[%emt 0:00:12]} 49. Kxf3 {[%emt 0:00:13]} Rxh4 {[%emt 0:00:34]} 50. Rd1+ {[%emt 0:00:54]} Ke5 {[%emt 0:00:17]} 51. Rd7 {[%emt 0:00:18]} Kxf5 {[%emt 0:01:07]} 52. b5 {[%emt 0:00:20]} Rxa4 {[%emt 0:00:27]} 53. Rxb7 {[%emt 0:00:10]} cxb5 {[%emt 0:00:18]} 54. Rxb6 {[%emt 0:00:01]} Rb4 {[%emt 0:00:35]} 55. Kg3 {[%emt 0:00:18]} Rb3 {[%emt 0:00:48]} 56. Kf3 {[%emt 0:00:11]} g4+ {[%emt 0:00:49]} 57. Kf2 {[%emt 0:00:01]} Ke5 {[%emt 0:00:25]} 58. Rb8 {[%emt 0:00:09]} b4 {[%emt 0:00:43]} 59. Re8+ {[%emt 0:00:15]} Kf5 {[%emt 0:00:16]} 60. Rb8 {[%emt 0:00:05]} Rb1 {[%emt 0:00:47]} 61. Kg3 {[%emt 0:00:25]} b3 {[%emt 0:00:22]} 62. Rb5+ {[%emt 0:00:04]} Ke4 {[%emt 0:00:13]} 63. Kxg4 {[%emt 0:01:04]} b2 {[%emt 0:00:10]} 0-1

[Event "V Magistral Marcel Duchamp 2019"]
[Site "Montevideo"]
[Date "2019.02.20"]
[Round "5.5"]
[White "Carbone, Diego"]
[Black "Lopez Azambuja, Nicolas"]
[Result "1/2-1/2"]
[ECO "A40"]
[WhiteElo "2256"]
[BlackElo "2320"]
[Annotator "NA RC"]
[PlyCount "107"]
[EventDate "2019.02.17"]
[EventType "tourn"]
[EventCountry "URU"]
[SourceTitle "playchess.com"]
[Source "ChessBase"]
[SourceQuality "1"]
[TimeControl "5400+30"]

1. d4 {[%emt 0:00:00]} Nf6 {[%emt 0:00:00]} 2. c4 {[%emt 0:00:00]} e6 {[%emt 0:00:00]} 3. g3 {[%emt 0:00:00]} Bb4+ {[%emt 0:00:10]} 4. Bd2 {[%emt 0:00:05]} c5 {[%emt 0:00:10]} 5. Bxb4 cxb4 {[%emt 0:00:31]} 6. Bg2 {[%emt 0:00:30]} O-O {[%emt 0:00:13]} 7. e4 {[%emt 0:00:29]} d6 {[%emt 0:00:22]} 8. Ne2 {[%emt 0:00:07]} e5 {[%emt 0:00:22]} 9. a3 {[%emt 0:00:33]} Qb6 {[%emt 0:00:31]} 10. O-O {[%emt 0:15:51]} a5 {[%emt 0:00:25]} 11. axb4 {[%emt 0:03:20]} Qxb4 {[%emt 0:00:18]} 12. Na3 {[%emt 0:01:23]} Bg4 {[%emt 0:02:16]} 13. f3 {[%emt 0:14:52]} Bd7 {[%emt 0:01:16]} 14. Qd3 {[%emt 0:00:38]} Nc6 {[%emt 0:10:31]} 15. h3 {[%emt 0:21:29]} exd4 {[%emt 0:26:36]} 16. f4 {[%emt 0:00:06]} Qc5 {[%emt 0:01:39]} 17. Rad1 {[%emt 0:02:42]} Rfe8 {[%emt 0:19:35]} 18. Kh2 {[%emt 0:00:07]} Qh5 {[%emt 0:03:41]} 19. Nc2 {[%emt 0:16:29]} Bf5 {[%emt 0:21:55]} 20. g4 {[%emt 0:09:32]} Bxg4 {[%emt 0:01:46]} 21. Ng3 {[%emt 0:00:05]} Qh4 {[%emt 0:00:50]} 22. Rde1 {[%emt 0:00:05]} Be6 {[%emt 0:01:41]} 23. Rf3 {[%emt 0:05:39]} Rac8 {[%emt 0:02:01]} 24. b3 {[%emt 0:01:45]} Ng4+ {[%emt 0:01:01]} 25. Kg1 {[%emt 0:00:36]} Nf6 {[%emt 0:00:12]} 26. Kh2 {[%emt 0:03:40]} g5 {[%emt 0:00:28]} 27. e5 {[%emt 0:02:54]} dxe5 {[%emt 0:01:18]} 28. fxg5 {[%emt 0:00:29]} Nh5 {[%emt 0:00:58]} 29. Nxh5 {[%emt 0:00:32]} Qxh5 {[%emt 0:00:03]} 30. Rg3 {[%emt 0:00:14]} Kh8 {[%emt 0:01:46]} 31. Bf3 {[%emt 0:00:28]} Qh4 {[%emt 0:00:15]} 32. Be4 {[%emt 0:00:38]} Rg8 {[%emt 0:00:16]} 33. Reg1 {[%emt 0:00:05]} Rg7 {[%emt 0:00:16]} 34. Ne1 {[%emt 0:00:25]} Qf4 {[%emt 0:00:28]} 35. Ng2 {[%emt 0:01:00]} Qf2 {[%emt 0:00:20]} 36. Rf1 {[%emt 0:00:26]} Qb2 {[%emt 0:00:09]} 37. Bxc6 {[%emt 0:00:37]} bxc6 {[%emt 0:00:12]} 38. Qe4 {[%emt 0:00:12]} d3 {[%emt 0:00:37]} 39. Qxd3 {[%emt 0:00:30]} Qd4 {[%emt 0:00:31]} 40. Qe2 {[%emt 0:00:17]} e4 {[%emt 0:00:30]} 41. Rf4 {[%emt 0:00:21]} f5 {[%emt 0:01:00]} 42. gxf6 {[%emt 0:00:49]} Rxg3 {[%emt 0:00:04]} 43. Kxg3 {[%emt 0:00:22]} Rg8+ {[%emt 0:00:42]} 44. Kh2 {[%emt 0:00:37]} Qc3 {[%emt 0:00:27]} 45. f7 {[%emt 0:00:59]} Rf8 {[%emt 0:01:17]} 46. Qxe4 {[%emt 0:00:27]} Qxh3+ {[%emt 0:00:27]} 47. Kg1 {[%emt 0:00:05]} Rxf7 {[%emt 0:00:27]} 48. Rxf7 {[%emt 0:00:54]} Bxf7 {[%emt 0:00:05]} 49. Qxc6 {[%emt 0:00:25]} Qxb3 {[%emt 0:00:21]} 50. Qf6+ {[%emt 0:00:22]} Kg8 {[%emt 0:00:31]} 51. Qd8+ {[%emt 0:00:05]} Kg7 {[%emt 0:00:06]} 52. Qg5+ {[%emt 0:00:04]} Kf8 {[%emt 0:01:22]} 53. Qd8+ {[%emt 0:00:19]} Kg7 {[%emt 0:01:24]} 54. Qg5+ {[%emt 0:00:05]} 1/2-1/2

[Event "V Magistral Marcel Duchamp 2019"]
[Site "Montevideo"]
[Date "2019.02.22"]
[Round "7.1"]
[White "Larrea, Manuel"]
[Black "Tristan, Leonardo"]
[Result "0-1"]
[ECO "C54"]
[WhiteElo "2269"]
[BlackElo "2493"]
[Annotator "ChessBase"]
[PlyCount "52"]
[EventDate "2019.02.17"]
[EventType "tourn"]
[EventCountry "URU"]
[SourceTitle "playchess.com"]
[Source "ChessBase"]
[SourceQuality "1"]
[TimeControl "5400+30"]

1. e4 {[%emt 0:00:00]} e5 {[%emt 0:04:13]} 2. Nf3 {[%emt 0:00:00]} Nc6 {[%emt 0:00:12]} 3. Bc4 {[%emt 0:00:00]} Bc5 {[%emt 0:00:07]} 4. c3 {[%emt 0:00:01]} Nf6 {[%emt 0:00:16]} 5. d3 {[%emt 0:00:15]} d6 {[%emt 0:01:11]} 6. a4 {[%emt 0:00:51]} a5 {[%emt 0:00:07]} 7. O-O {[%emt 0:05:55]} h6 {[%emt 0:03:11]} 8. Na3 {[%emt 0:05:23]} O-O {[%emt 0:02:32]} 9. Nc2 {[%emt 0:00:05]} Be6 {[%emt 0:06:39]} 10. Bxe6 {[%emt 0:14:36]} fxe6 {[%emt 0:00:18]} 11. Be3 {[%emt 0:03:46]} Bxe3 {[%emt 0:01:04]} 12. Nxe3 {[%emt 0:02:05]} d5 {[%emt 0:06:53]} 13. Qb3 {[%emt 0:08:36]} Qd7 {[%emt 0:02:58]} 14. Rad1 {[%emt 0:03:11]} Kh8 {[%emt 0:03:19]} 15. exd5 {[%emt 0:02:17]} exd5 {[%emt 0:00:04]} 16. d4 {[%emt 0:00:16]} exd4 {[%emt 0:00:12]} 17. Nxd4 {[%emt 0:00:10]} Nxd4 {[%emt 0:00:05]} 18. Rxd4 {[%emt 0:00:23]} c6 {[%emt 0:00:04]} 19. Rfd1 {[%emt 0:13:03]} Qf7 {[%emt 0:01:44]} 20. Rf4 {[%emt 0:00:56]} Qc7 {[%emt 0:00:41]} 21. Rf3 {[%emt 0:14:09]} Ne4 {[%emt 0:01:00]} 22. Rxf8+ {[%emt 0:01:26]} Rxf8 {[%emt 0:00:06]} 23. f3 {[%emt 0:01:29]} Nc5 {[%emt 0:00:53]} 24. Qa3 {[%emt 0:06:27]} Qb6 {[%emt 0:00:07]} 25. Kf2 {[%emt 0:10:53]} Re8 {[%emt 0:10:56]} 26. b4 {[%emt 0:03:18]} Na6 {[%emt 0:07:19]} 0-1

[Event "V Magistral Marcel Duchamp 2019"]
[Site "Montevideo"]
[Date "2019.02.22"]
[Round "7.2"]
[White "Lujan, Carolina"]
[Black "Hoffman, Alejandro"]
[Result "1/2-1/2"]
[ECO "B72"]
[WhiteElo "2357"]
[BlackElo "2461"]
[Annotator "ChessBase"]
[PlyCount "84"]
[EventDate "2019.02.17"]
[EventType "tourn"]
[EventCountry "URU"]
[SourceTitle "playchess.com"]
[Source "ChessBase"]
[SourceQuality "1"]
[TimeControl "5400+30"]

1. e4 {[%emt 0:00:00]} c5 {[%emt 0:00:34]} 2. Nf3 {[%emt 0:00:00]} d6 {[%emt 0:00:07]} 3. d4 cxd4 {[%emt 0:00:08]} 4. Nxd4 {[%emt 0:00:00]} Nf6 {[%emt 0:00:06]} 5. Nc3 {[%emt 0:00:00]} g6 {[%emt 0:00:07]} 6. Be2 {[%emt 0:01:10]} Bg7 {[%emt 0:00:48]} 7. Be3 {[%emt 0:00:38]} O-O {[%emt 0:00:15]} 8. Qd2 {[%emt 0:00:18]} Nc6 {[%emt 0:00:22]} 9. O-O-O {[%emt 0:00:24]} Nxd4 {[%emt 0:03:33]} 10. Bxd4 {[%emt 0:00:25]} Be6 {[%emt 0:00:50]} 11. h4 {[%emt 0:08:34]} Qa5 {[%emt 0:12:47]} 12. Qg5 Qxg5+ {[%emt 0:03:59]} 13. hxg5 {[%emt 0:04:07]} Nd7 {[%emt 0:00:07]} 14. f4 {[%emt 0:13:57]} Bxd4 {[%emt 0:08:35]} 15. Rxd4 {[%emt 0:00:06]} f6 {[%emt 0:00:38]} 16. gxf6 {[%emt 0:07:26]} Rxf6 {[%emt 0:00:24]} 17. g3 {[%emt 0:09:43]} g5 {[%emt 0:00:09]} 18. Bc4 {[%emt 0:05:19]} gxf4 {[%emt 0:08:23]} 19. Bxe6+ {[%emt 0:01:19]} Rxe6 {[%emt 0:00:03]} 20. gxf4 {[%emt 0:00:13]} Rf8 {[%emt 0:00:23]} 21. Nd5 {[%emt 0:08:55]} Nf6 {[%emt 0:04:07]} 22. Nxf6+ {[%emt 0:00:53]} Rfxf6 {[%emt 0:00:11]} 23. f5 {[%emt 0:02:18]} Re5 {[%emt 0:00:06]} 24. Rh4 {[%emt 0:02:11]} Kg7 {[%emt 0:01:43]} 25. Rg4+ {[%emt 0:00:39]} Kf7 {[%emt 0:00:54]} 26. Rh4 {[%emt 0:00:12]} h6 {[%emt 0:00:08]} 27. c4 {[%emt 0:05:48]} Rc5 {[%emt 0:02:29]} 28. b3 {[%emt 0:00:25]} Rc8 {[%emt 0:01:04]} 29. Rd2 {[%emt 0:05:49]} b5 {[%emt 0:02:46]} 30. Rc2 {[%emt 0:00:03]} Rc5 {[%emt 0:01:40]} 31. Kb2 {[%emt 0:04:28]} a5 {[%emt 0:01:08]} 32. Kc3 {[%emt 0:02:06]} bxc4 {[%emt 0:03:22]} 33. bxc4 {[%emt 0:01:17]} e6 {[%emt 0:00:23]} 34. Rf2 {[%emt 0:03:02]} exf5 {[%emt 0:00:16]} 35. Rxf5 {[%emt 0:00:38]} Rfxf5 {[%emt 0:00:31]} 36. exf5 {[%emt 0:00:04]} d5 {[%emt 0:00:08]} 37. Rxh6 {[%emt 0:00:35]} Rxc4+ {[%emt 0:00:07]} 38. Kd3 {[%emt 0:01:48]} Ra4 {[%emt 0:00:09]} 39. Rd6 {[%emt 0:01:07]} Ra3+ {[%emt 0:00:06]} 40. Kd4 {[%emt 0:00:18]} Rxa2 {[%emt 0:00:07]} 41. Rxd5 {[%emt 0:00:32]} Rd2+ {[%emt 0:00:06]} 42. Kc4 {[%emt 0:00:07]} Rxd5 {[%emt 0:00:06]} 1/2-1/2

[Event "V Magistral Marcel Duchamp 2019"]
[Site "Montevideo"]
[Date "2019.02.23"]
[Round "8.1"]
[White "Tristan, Leonardo"]
[Black "Hungaski, Robert"]
[Result "1/2-1/2"]
[ECO "A80"]
[WhiteElo "2493"]
[BlackElo "2520"]
[Annotator "ChessBase"]
[PlyCount "25"]
[EventDate "2019.02.17"]
[EventType "tourn"]
[EventCountry "URU"]
[SourceTitle "playchess.com"]
[Source "ChessBase"]
[SourceQuality "1"]
[TimeControl "5400+30"]

1. d4 {[%emt 0:04:53]} f5 {[%emt 0:04:40]} 2. Nc3 {[%emt 0:00:16]} Nf6 {[%emt 0:00:12]} 3. Bg5 {[%emt 0:00:09]} d5 {[%emt 0:00:15]} 4. Bxf6 exf6 {[%emt 0:00:06]} 5. e3 {[%emt 0:00:15]} c6 {[%emt 0:00:28]} 6. Bd3 {[%emt 0:00:09]} Qb6 {[%emt 0:00:51]} 7. Rb1 {[%emt 0:00:20]} Qc7 {[%emt 0:01:03]} 8. Qf3 {[%emt 0:00:44]} g6 {[%emt 0:00:11]} 9. Nge2 {[%emt 0:00:06]} Bd6 {[%emt 0:00:29]} 10. h4 {[%emt 0:00:25]} h5 {[%emt 0:00:26]} 11. Nf4 {[%emt 0:00:06]} Bxf4 {[%emt 0:00:32]} 12. Qxf4 {[%emt 0:00:06]} Qxf4 {[%emt 0:00:05]} 13. exf4 {[%emt 0:00:05]} 1/2-1/2

[Event "V Magistral Marcel Duchamp 2019"]
[Site "Montevideo"]
[Date "2019.02.23"]
[Round "8.4"]
[White "Hoffman, Alejandro"]
[Black "Gemy, Jose Daniel"]
[Result "1-0"]
[ECO "E18"]
[WhiteElo "2461"]
[BlackElo "2391"]
[Annotator "RC"]
[PlyCount "71"]
[EventDate "2019.02.17"]
[EventType "tourn"]
[EventCountry "URU"]
[SourceTitle "playchess.com"]
[Source "ChessBase"]
[SourceQuality "1"]
[TimeControl "5400+30"]

1. d4 {[%emt 0:00:00]} Nf6 {[%emt 0:12:42]} 2. c4 {[%emt 0:00:00]} e6 {[%emt 0:00:06]} 3. Nf3 {[%emt 0:00:11]} b6 {[%emt 0:00:04]} 4. g3 {[%emt 0:00:19]} Bb7 {[%emt 0:03:23]} 5. Bg2 {[%emt 0:00:10]} Be7 {[%emt 0:00:07]} 6. O-O {[%emt 0:00:10]} O-O {[%emt 0:00:02]} 7. Nc3 {[%emt 0:00:18]} Ne4 {[%emt 0:00:19]} 8. Bd2 {[%emt 0:00:16]} d5 {[%emt 0:07:23]} 9. cxd5 {[%emt 0:08:09]} exd5 {[%emt 0:00:11]} 10. Rc1 {[%emt 0:03:14]} Na6 {[%emt 0:31:40]} 11. Ne5 {[%emt 0:05:35]} Nxc3 {[%emt 0:09:45]} 12. Bxc3 {[%emt 0:03:19]} c5 {[%emt 0:00:22]} 13. e3 {[%emt 0:04:28]} f6 {[%emt 0:03:12]} 14. Nd3 {[%emt 0:01:39]} c4 {[%emt 0:00:59]} 15. Nf4 {[%emt 0:00:26]} Nc7 {[%emt 0:00:04]} 16. b3 {[%emt 0:00:46]} g5 {[%emt 0:05:41]} 17. Nh5 {[%emt 0:00:31]} cxb3 {[%emt 0:01:42]} 18. Qxb3 {[%emt 0:05:26]} Ba6 {[%emt 0:00:31]} 19. Rfe1 {[%emt 0:00:30]} Bc4 {[%emt 0:01:14]} 20. Qb1 {[%emt 0:01:31]} Nb5 {[%emt 0:03:53]} 21. e4 {[%emt 0:04:57]} Ba3 {[%emt 0:02:36]} 22. Bb2 {[%emt 0:07:55]} Bb4 {[%emt 0:00:09]} 23. e5 {[%emt 0:00:33]} Bxe1 {[%emt 0:12:21]} 24. Rxe1 {[%emt 0:00:03]} Qe8 {[%emt 0:00:55]} 25. Nxf6+ {[%emt 0:02:35]} Rxf6 {[%emt 0:00:04]} 26. exf6 {[%emt 0:00:05]} Qg6 {[%emt 0:00:16]} 27. Qxg6+ {[%emt 0:00:40]} hxg6 {[%emt 0:00:01]} 28. Re7 {[%emt 0:00:15]} Rf8 {[%emt 0:01:24]} 29. a4 {[%emt 0:03:15]} Nd6 {[%emt 0:00:03]} 30. Rg7+ {[%emt 0:00:19]} Kh8 {[%emt 0:00:01]} 31. Rxg6 {[%emt 0:00:10]} Re8 {[%emt 0:03:43]} 32. h4 {[%emt 0:03:01]} gxh4 {[%emt 0:00:09]} 33. Ba3 {[%emt 0:00:35]} hxg3 {[%emt 0:00:20]} 34. fxg3 {[%emt 0:00:34]} Nf7 {[%emt 0:00:58]} 35. Rg7 {[%emt 0:01:07]} Re3 {[%emt 0:00:39]} 36. Be7 {[%emt 0:08:11]} 1-0